[Event "Titled Tuesday Blitz February 28 Early 2023"]
[White "Zemlyanskii, Ivan"]
[Black "Ilinca Ilinca, Felix Antonio"]
[WhiteFideId "24249971"]
[BlackFideId "54764998"]
[WhiteElo "2233"]
[BlackElo "2031"]
[Result "0-1"]
[Round "08"]
[TimeControl "180+2"]
[Date "2023.02.28"]
[WhiteClock "0:00:03"]
[BlackClock "0:00:19"]

1. d4 {[%clk 0:03:00]}  d5 {[%clk 0:02:54]} 2. c4 {[%clk 0:03:00]}  e6 {[%clk 0:02:54]} 3. Nc3 {[%clk 0:02:59]}  Bb4 {[%clk 0:02:55]} 4. Bf4 {[%clk 0:02:57]}  Nf6 {[%clk 0:02:53]} 5. Qa4+ {[%clk 0:02:56]}  Nc6 {[%clk 0:02:53]} 6. e3 {[%clk 0:02:56]}  O-O {[%clk 0:02:52]} 7. Nf3 {[%clk 0:02:56]}  a6 {[%clk 0:02:47]} 8. Qc2 {[%clk 0:02:34]}  dxc4 {[%clk 0:02:31]} 9. Bxc4 {[%clk 0:02:34]}  b5 {[%clk 0:02:32]} 10. Be2 {[%clk 0:02:19]}  Bb7 {[%clk 0:02:27]} 11. O-O {[%clk 0:02:19]}  Bd6 {[%clk 0:01:54]} 12. Bg5 {[%clk 0:02:15]}  h6 {[%clk 0:01:51]} 13. Bxf6 {[%clk 0:02:14]}  Qxf6 {[%clk 0:01:51]} 14. Rac1 {[%clk 0:02:06]}  Rac8 {[%clk 0:01:26]} 15. Ne4 {[%clk 0:02:01]}  Qe7 {[%clk 0:01:13]} 16. Nc5 {[%clk 0:01:57]}  Bxc5 {[%clk 0:01:11]} 17. Qxc5 {[%clk 0:01:56]}  Qxc5 {[%clk 0:01:06]} 18. Rxc5 {[%clk 0:01:57]}  Rfd8 {[%clk 0:01:06]} 19. Rfc1 {[%clk 0:01:51]}  Nb4 {[%clk 0:00:56]} 20. a3 {[%clk 0:01:47]}  Nd5 {[%clk 0:00:56]} 21. Ne5 {[%clk 0:01:47]}  f6 {[%clk 0:00:52]} 22. Nc6 {[%clk 0:01:37]}  Rd7 {[%clk 0:00:36]} 23. Bg4 {[%clk 0:01:32]}  Kf7 {[%clk 0:00:34]} 24. h4 {[%clk 0:01:31]}  g6 {[%clk 0:00:33]} 25. Na5 {[%clk 0:01:29]}  Ba8 {[%clk 0:00:30]} 26. Bf3 {[%clk 0:01:25]}  Ke7 {[%clk 0:00:28]} 27. Nc6+ {[%clk 0:01:18]}  Bxc6 {[%clk 0:00:28]} 28. Rxc6 {[%clk 0:01:19]}  Rd6 {[%clk 0:00:28]} 29. R6c5 {[%clk 0:01:19]}  Kd7 {[%clk 0:00:27]} 30. g3 {[%clk 0:01:13]}  h5 {[%clk 0:00:27]} 31. Kg2 {[%clk 0:01:08]}  c6 {[%clk 0:00:22]} 32. Be4 {[%clk 0:00:56]}  f5 {[%clk 0:00:21]} 33. Bd3 {[%clk 0:00:57]}  Nf6 {[%clk 0:00:21]} 34. a4 {[%clk 0:00:52]}  Rb8 {[%clk 0:00:21]} 35. axb5 {[%clk 0:00:50]}  axb5 {[%clk 0:00:22]} 36. Ra1 {[%clk 0:00:45]}  Kc7 {[%clk 0:00:21]} 37. Kf3 {[%clk 0:00:43]}  Nd7 {[%clk 0:00:21]} 38. Rc3 {[%clk 0:00:31]}  e5 {[%clk 0:00:21]} 39. Rac1 {[%clk 0:00:20]}  e4+ {[%clk 0:00:20]} 40. Bxe4 {[%clk 0:00:16]}  fxe4+ {[%clk 0:00:21]} 41. Kxe4 {[%clk 0:00:17]}  Nf6+ {[%clk 0:00:21]} 42. Kf3 {[%clk 0:00:16]}  Nd5 {[%clk 0:00:21]} 43. R3c2 {[%clk 0:00:17]}  Rf8+ {[%clk 0:00:22]} 44. Kg2 {[%clk 0:00:18]}  Nb4 {[%clk 0:00:22]} 45. Rd2 {[%clk 0:00:14]}  Ra8 {[%clk 0:00:21]} 46. Rc5 {[%clk 0:00:14]}  Nd5 {[%clk 0:00:20]} 47. e4 {[%clk 0:00:13]}  Nb6 {[%clk 0:00:21]} 48. b3 {[%clk 0:00:10]}  Ra3 {[%clk 0:00:20]} 49. d5 {[%clk 0:00:08]}  Rxb3 {[%clk 0:00:19]} 50. Rdc2 {[%clk 0:00:08]}  Nc4 {[%clk 0:00:19]} 51. dxc6 {[%clk 0:00:06]}  Rxc6 {[%clk 0:00:19]} 52. Rxc6+ {[%clk 0:00:04]}  Kxc6 {[%clk 0:00:20]} 53. Ra2 {[%clk 0:00:05]}  Ra3 {[%clk 0:00:19]} 54. Re2 {[%clk 0:00:01]}  Kd6 {[%clk 0:00:18]} 55. e5+ {[%clk 0:00:02]}  Nxe5 {[%clk 0:00:18]} 56. Rd2+ {[%clk 0:00:03]}  Rd3 {[%clk 0:00:18]} 57. Rb2 {[%clk 0:00:03]}  Rd5 {[%clk 0:00:19]} 0-1


[Site "https://www.chess.com"]

[Event "Titled Tuesday Blitz February 28 Early 2023"]
[White "Yuan, Qingyu"]
[Black "Domingo Nunez, Alejandro"]
[WhiteFideId "8609772"]
[BlackFideId "22245561"]
[WhiteElo "2359"]
[BlackElo "2230"]
[Result "1/2-1/2"]
[Round "08"]
[TimeControl "180+2"]
[Date "2023.02.28"]
[WhiteClock "0:00:05"]
[BlackClock "0:00:33"]

1. e4 {[%clk 0:03:00]}  g6 {[%clk 0:03:00]} 2. d4 {[%clk 0:03:00]}  Bg7 {[%clk 0:03:00]} 3. Nc3 {[%clk 0:03:01]}  c6 {[%clk 0:03:01]} 4. f4 {[%clk 0:03:01]}  d5 {[%clk 0:03:02]} 5. e5 {[%clk 0:03:02]}  f6 {[%clk 0:03:01]} 6. Nf3 {[%clk 0:02:59]}  Nh6 {[%clk 0:03:01]} 7. Bd3 {[%clk 0:02:50]}  Bg4 {[%clk 0:02:44]} 8. h3 {[%clk 0:02:50]}  Bxf3 {[%clk 0:02:43]} 9. Qxf3 {[%clk 0:02:51]}  O-O {[%clk 0:02:43]} 10. Qg3 {[%clk 0:02:28]}  fxe5 {[%clk 0:02:07]} 11. fxe5 {[%clk 0:02:18]}  c5 {[%clk 0:01:58]} 12. dxc5 {[%clk 0:01:59]}  Nc6 {[%clk 0:01:58]} 13. Bf4 {[%clk 0:01:49]}  e6 {[%clk 0:01:35]} 14. O-O-O {[%clk 0:01:20]}  Nf5 {[%clk 0:01:34]} 15. Qe1 {[%clk 0:00:54]}  Nh4 {[%clk 0:01:24]} 16. g3 {[%clk 0:00:36]}  Ng2 {[%clk 0:01:24]} 17. Qd2 {[%clk 0:00:31]}  Nxf4 {[%clk 0:01:23]} 18. gxf4 {[%clk 0:00:31]}  Bh6 {[%clk 0:01:23]} 19. Rdf1 {[%clk 0:00:27]}  Qh4 {[%clk 0:01:20]} 20. Kb1 {[%clk 0:00:26]}  Bxf4 {[%clk 0:01:19]} 21. Qg2 {[%clk 0:00:24]}  Nxe5 {[%clk 0:01:17]} 22. Be2 {[%clk 0:00:22]}  Qg3 {[%clk 0:01:11]} 23. Rhg1 {[%clk 0:00:17]}  Qxg2 {[%clk 0:01:08]} 24. Rxg2 {[%clk 0:00:18]}  Be3 {[%clk 0:01:08]} 25. b4 {[%clk 0:00:14]}  Rxf1+ {[%clk 0:00:52]} 26. Bxf1 {[%clk 0:00:15]}  Nf3 {[%clk 0:00:53]} 27. Be2 {[%clk 0:00:14]}  Nd4 {[%clk 0:00:53]} 28. Nb5 {[%clk 0:00:10]}  Nxb5 {[%clk 0:00:49]} 29. Bxb5 {[%clk 0:00:11]}  Bd4 {[%clk 0:00:49]} 30. Rg3 {[%clk 0:00:08]}  Rf8 {[%clk 0:00:46]} 31. c3 {[%clk 0:00:08]}  Bf2 {[%clk 0:00:45]} 32. Rd3 {[%clk 0:00:07]}  a6 {[%clk 0:00:45]} 33. Bd7 {[%clk 0:00:04]}  Kf7 {[%clk 0:00:45]} 34. Rf3+ {[%clk 0:00:04]}  Ke7 {[%clk 0:00:43]} 35. Rxf8 {[%clk 0:00:04]}  Kxf8 {[%clk 0:00:44]} 36. Bxe6 {[%clk 0:00:05]}  d4 {[%clk 0:00:44]} 37. cxd4 {[%clk 0:00:04]}  Bxd4 {[%clk 0:00:45]} 38. Bc8 {[%clk 0:00:05]}  a5 {[%clk 0:00:37]} 39. a3 {[%clk 0:00:03]}  axb4 {[%clk 0:00:37]} 40. axb4 {[%clk 0:00:04]}  b6 {[%clk 0:00:37]} 41. c6 {[%clk 0:00:04]}  Be5 {[%clk 0:00:38]} 42. Kc2 {[%clk 0:00:03]}  Ke7 {[%clk 0:00:38]} 43. Kd3 {[%clk 0:00:03]}  Kd6 {[%clk 0:00:38]} 44. Bd7 {[%clk 0:00:03]}  h5 {[%clk 0:00:38]} 45. Kc4 {[%clk 0:00:03]}  g5 {[%clk 0:00:37]} 46. Kb5 {[%clk 0:00:03]}  Kc7 {[%clk 0:00:37]} 47. Be8 {[%clk 0:00:02]}  g4 {[%clk 0:00:35]} 48. hxg4 {[%clk 0:00:02]}  hxg4 {[%clk 0:00:32]} 49. Bg6 {[%clk 0:00:02]}  g3 {[%clk 0:00:32]} 50. Be4 {[%clk 0:00:03]}  Bd4 {[%clk 0:00:32]} 51. Bg2 {[%clk 0:00:04]}  Bf2 {[%clk 0:00:32]} 52. Kc4 {[%clk 0:00:04]}  Be1 {[%clk 0:00:33]} 53. Kb3 {[%clk 0:00:04]}  Kd6 {[%clk 0:00:33]} 54. Kc4 {[%clk 0:00:05]}  Kc7 {[%clk 0:00:33]} 55. Kb5 {[%clk 0:00:05]}  Bd2 {[%clk 0:00:33]} 56. Kc4 {[%clk 0:00:05]}  Be1 {[%clk 0:00:33]} 1/2-1/2


[Site "https://www.chess.com"]

[Event "Titled Tuesday Blitz February 28 Early 2023"]
[White "Pakleza, Zbigniew"]
[Black "Roebers, Eline"]
[WhiteFideId "1119290"]
[BlackFideId "1058401"]
[WhiteElo "2410"]
[BlackElo "2560"]
[Result "1-0"]
[Round "08"]
[TimeControl "180+2"]
[Date "2023.02.28"]
[WhiteClock "0:00:03"]
[BlackClock "0:00:05"]

1. d4 {[%clk 0:03:00]}  f5 {[%clk 0:02:59]} 2. Nf3 {[%clk 0:02:58]}  Nf6 {[%clk 0:02:58]} 3. c4 {[%clk 0:02:59]}  g6 {[%clk 0:02:58]} 4. Nc3 {[%clk 0:03:00]}  Bg7 {[%clk 0:02:59]} 5. e3 {[%clk 0:03:00]}  O-O {[%clk 0:02:59]} 6. Be2 {[%clk 0:03:01]}  d6 {[%clk 0:03:00]} 7. b4 {[%clk 0:03:01]}  Qe8 {[%clk 0:03:00]} 8. O-O {[%clk 0:03:01]}  e5 {[%clk 0:03:00]} 9. a4 {[%clk 0:03:00]}  e4 {[%clk 0:02:58]} 10. Nd2 {[%clk 0:03:00]}  c6 {[%clk 0:02:55]} 11. Ba3 {[%clk 0:03:00]}  d5 {[%clk 0:02:48]} 12. b5 {[%clk 0:03:00]}  Rf7 {[%clk 0:02:48]} 13. bxc6 {[%clk 0:03:00]}  bxc6 {[%clk 0:02:47]} 14. cxd5 {[%clk 0:03:01]}  cxd5 {[%clk 0:02:48]} 15. Nb5 {[%clk 0:03:01]}  Rd7 {[%clk 0:02:35]} 16. Rc1 {[%clk 0:02:57]}  Qd8 {[%clk 0:02:26]} 17. Nb3 {[%clk 0:02:35]}  Na6 {[%clk 0:02:20]} 18. Qc2 {[%clk 0:02:25]}  Bb7 {[%clk 0:02:16]} 19. Qd2 {[%clk 0:02:21]}  g5 {[%clk 0:01:23]} 20. Na5 {[%clk 0:02:08]}  Bh6 {[%clk 0:01:10]} 21. Nxb7 {[%clk 0:02:05]}  Rxb7 {[%clk 0:01:11]} 22. Nd6 {[%clk 0:02:06]}  Rb3 {[%clk 0:01:07]} 23. Nxf5 {[%clk 0:02:00]}  Rxa3 {[%clk 0:01:05]} 24. Nxh6+ {[%clk 0:02:01]}  Kg7 {[%clk 0:01:05]} 25. Nf5+ {[%clk 0:02:01]}  Kg6 {[%clk 0:01:06]} 26. g4 {[%clk 0:01:11]}  Rxa4 {[%clk 0:00:50]} 27. Bb5 {[%clk 0:00:54]}  Ra5 {[%clk 0:00:48]} 28. Bc6 {[%clk 0:00:45]}  Rb8 {[%clk 0:00:42]} 29. Rb1 {[%clk 0:00:20]}  Nxg4 {[%clk 0:00:37]} 30. Ne7+ {[%clk 0:00:17]}  Qxe7 {[%clk 0:00:30]} 31. h3 {[%clk 0:00:06]}  Rxb1 {[%clk 0:00:18]} 32. Rxb1 {[%clk 0:00:06]}  Ra3 {[%clk 0:00:11]} 33. hxg4 {[%clk 0:00:06]}  Qe6 {[%clk 0:00:12]} 34. Bb5 {[%clk 0:00:03]}  Qxg4+ {[%clk 0:00:12]} 35. Kf1 {[%clk 0:00:04]}  Nc7 {[%clk 0:00:11]} 36. Be2 {[%clk 0:00:03]}  Qh3+ {[%clk 0:00:10]} 37. Kg1 {[%clk 0:00:03]}  Qd7 {[%clk 0:00:06]} 38. Qc1 {[%clk 0:00:03]}  Ne6 {[%clk 0:00:05]} 39. Qxa3 {[%clk 0:00:03]} 1-0


[Site "https://www.chess.com"]

[Event "Titled Tuesday Blitz February 28 Early 2023"]
[White "Kopczynski, Michal"]
[Black "Nur, Shahidee Bin Saharan"]
[WhiteFideId "1124200"]
[BlackFideId "5810973"]
[WhiteElo "2212"]
[BlackElo "2741"]
[Result "0-1"]
[Round "08"]
[TimeControl "180+2"]
[Date "2023.02.28"]
[WhiteClock "0:00:07"]
[BlackClock "0:00:34"]

1. e4 {[%clk 0:03:00]}  c5 {[%clk 0:02:59]} 2. d4 {[%clk 0:03:01]}  e6 {[%clk 0:02:58]} 3. f4 {[%clk 0:02:59]}  cxd4 {[%clk 0:02:58]} 4. c3 {[%clk 0:02:59]}  d5 {[%clk 0:02:57]} 5. e5 {[%clk 0:02:58]}  dxc3 {[%clk 0:02:57]} 6. Nxc3 {[%clk 0:02:59]}  Nc6 {[%clk 0:02:57]} 7. Nf3 {[%clk 0:03:00]}  Bc5 {[%clk 0:02:57]} 8. Bd3 {[%clk 0:03:00]}  Nge7 {[%clk 0:02:57]} 9. Qe2 {[%clk 0:03:00]}  Ng6 {[%clk 0:02:55]} 10. Bd2 {[%clk 0:02:56]}  a6 {[%clk 0:02:53]} 11. O-O-O {[%clk 0:02:56]}  b5 {[%clk 0:02:53]} 12. f5 {[%clk 0:02:46]}  exf5 {[%clk 0:02:46]} 13. e6 {[%clk 0:02:46]}  fxe6 {[%clk 0:02:03]} 14. Bxf5 {[%clk 0:02:46]}  Qf6 {[%clk 0:01:05]} 15. Nxd5 {[%clk 0:00:56]}  Qxf5 {[%clk 0:01:04]} 16. Nc7+ {[%clk 0:00:56]}  Kf8 {[%clk 0:00:52]} 17. Nxa8 {[%clk 0:00:56]}  Kg8 {[%clk 0:00:42]} 18. Rhf1 {[%clk 0:00:49]}  h6 {[%clk 0:00:39]} 19. Nh4 {[%clk 0:00:41]}  Nd4 {[%clk 0:00:35]} 20. Nxf5 {[%clk 0:00:17]}  Nxe2+ {[%clk 0:00:36]} 21. Kb1 {[%clk 0:00:18]}  exf5 {[%clk 0:00:37]} 22. Rfe1 {[%clk 0:00:11]}  Nd4 {[%clk 0:00:36]} 23. Re8+ {[%clk 0:00:09]}  Kh7 {[%clk 0:00:37]} 24. Nc7 {[%clk 0:00:08]}  Rxe8 {[%clk 0:00:36]} 25. Nxe8 {[%clk 0:00:09]}  Bb7 {[%clk 0:00:37]} 26. g3 {[%clk 0:00:09]}  Be4+ {[%clk 0:00:37]} 27. Ka1 {[%clk 0:00:09]}  Nc2+ {[%clk 0:00:38]} 28. Kb1 {[%clk 0:00:10]}  Ne3+ {[%clk 0:00:39]} 29. Kc1 {[%clk 0:00:10]}  Nxd1 {[%clk 0:00:39]} 30. Kxd1 {[%clk 0:00:11]}  Ne5 {[%clk 0:00:36]} 31. Nc7 {[%clk 0:00:10]}  Nd3 {[%clk 0:00:34]} 32. Nxa6 {[%clk 0:00:09]}  Nxb2+ {[%clk 0:00:34]} 33. Ke2 {[%clk 0:00:10]}  Bd4 {[%clk 0:00:35]} 34. Nc7 {[%clk 0:00:08]}  Bd3+ {[%clk 0:00:33]} 35. Kf3 {[%clk 0:00:08]}  Nc4 {[%clk 0:00:34]} 36. Bb4 {[%clk 0:00:07]}  Ne5+ {[%clk 0:00:34]} 37. Kf4 {[%clk 0:00:07]}  g5# {[%clk 0:00:34]} 0-1


[Site "https://www.chess.com"]

[Event "Titled Tuesday Blitz February 28 Early 2023"]
[White "Aydincelebi, Kagan"]
[Black "Mayank Chakraborty"]
[WhiteFideId "6361102"]
[BlackFideId "25659766"]
[WhiteElo "2180"]
[BlackElo "2103"]
[Result "1-0"]
[Round "08"]
[TimeControl "180+2"]
[Date "2023.02.28"]
[WhiteClock "0:00:58"]
[BlackClock "0:00:06"]

1. e4 {[%clk 0:02:55]}  c5 {[%clk 0:02:58]} 2. Nf3 {[%clk 0:02:55]}  d6 {[%clk 0:02:58]} 3. Bb5+ {[%clk 0:02:55]}  Nd7 {[%clk 0:02:56]} 4. O-O {[%clk 0:02:55]}  Nf6 {[%clk 0:02:56]} 5. Re1 {[%clk 0:02:53]}  a6 {[%clk 0:02:56]} 6. Bf1 {[%clk 0:02:52]}  g6 {[%clk 0:02:55]} 7. c3 {[%clk 0:02:52]}  Bg7 {[%clk 0:02:53]} 8. d4 {[%clk 0:02:53]}  cxd4 {[%clk 0:02:53]} 9. cxd4 {[%clk 0:02:54]}  O-O {[%clk 0:02:53]} 10. Nc3 {[%clk 0:02:53]}  e5 {[%clk 0:02:52]} 11. h3 {[%clk 0:02:49]}  exd4 {[%clk 0:02:50]} 12. Nxd4 {[%clk 0:02:49]}  Ne5 {[%clk 0:02:50]} 13. Bg5 {[%clk 0:02:47]}  h6 {[%clk 0:02:48]} 14. Bh4 {[%clk 0:02:48]}  g5 {[%clk 0:02:42]} 15. Bg3 {[%clk 0:02:47]}  g4 {[%clk 0:02:39]} 16. hxg4 {[%clk 0:02:45]}  Bxg4 {[%clk 0:02:36]} 17. Qd2 {[%clk 0:02:45]}  Nh5 {[%clk 0:02:35]} 18. Bh2 {[%clk 0:02:40]}  Qh4 {[%clk 0:02:26]} 19. Nd5 {[%clk 0:02:33]}  Rae8 {[%clk 0:02:20]} 20. Ne3 {[%clk 0:02:17]}  Bd7 {[%clk 0:02:14]} 21. Nef5 {[%clk 0:02:17]}  Qg4 {[%clk 0:02:00]} 22. Nxh6+ {[%clk 0:01:38]}  Bxh6 {[%clk 0:01:58]} 23. Qxh6 {[%clk 0:01:39]}  Ng7 {[%clk 0:01:04]} 24. Qxd6 {[%clk 0:01:28]}  f6 {[%clk 0:00:35]} 25. Be2 {[%clk 0:01:18]}  Qh4 {[%clk 0:00:22]} 26. Bg3 {[%clk 0:01:13]}  Qxe4 {[%clk 0:00:22]} 27. Bxe5 {[%clk 0:01:07]}  Qh4 {[%clk 0:00:04]} 28. Bc4+ {[%clk 0:01:06]}  Kh8 {[%clk 0:00:04]} 29. Bg3 {[%clk 0:01:05]}  Rxe1+ {[%clk 0:00:05]} 30. Rxe1 {[%clk 0:01:05]}  Qg4 {[%clk 0:00:05]} 31. Qxf8+ {[%clk 0:01:05]}  Kh7 {[%clk 0:00:06]} 32. Qxf6 {[%clk 0:00:59]}  Nf5 {[%clk 0:00:06]} 33. Nxf5 {[%clk 0:00:57]}  Bxf5 {[%clk 0:00:07]} 34. Re7+ {[%clk 0:00:58]}  Qg7 {[%clk 0:00:06]} 35. Qxg7# {[%clk 0:00:58]} 1-0


[Site "https://www.chess.com"]

[Event "Titled Tuesday Blitz February 28 Early 2023"]
[White "Turzo, Attila"]
[Black "Srihari L R"]
[WhiteFideId "704954"]
[BlackFideId "46617116"]
[WhiteElo "2541"]
[BlackElo "2334"]
[Result "0-1"]
[Round "08"]
[TimeControl "180+2"]
[Date "2023.02.28"]
[WhiteClock "0:00:01"]
[BlackClock "0:00:16"]

1. e4 {[%clk 0:03:00]}  g6 {[%clk 0:03:00]} 2. d4 {[%clk 0:03:00]}  Bg7 {[%clk 0:02:48]} 3. c3 {[%clk 0:02:59]}  d6 {[%clk 0:02:46]} 4. Nf3 {[%clk 0:02:59]}  Nf6 {[%clk 0:02:44]} 5. Bd3 {[%clk 0:02:59]}  O-O {[%clk 0:02:45]} 6. O-O {[%clk 0:02:59]}  Nc6 {[%clk 0:02:45]} 7. Bg5 {[%clk 0:02:53]}  h6 {[%clk 0:02:44]} 8. Bh4 {[%clk 0:02:54]}  e5 {[%clk 0:02:40]} 9. dxe5 {[%clk 0:02:51]}  dxe5 {[%clk 0:02:40]} 10. Qc2 {[%clk 0:02:51]}  Qe8 {[%clk 0:02:38]} 11. Bxf6 {[%clk 0:02:50]}  Bxf6 {[%clk 0:02:38]} 12. Nbd2 {[%clk 0:02:48]}  Bg7 {[%clk 0:02:33]} 13. Rfe1 {[%clk 0:02:47]}  Be6 {[%clk 0:02:32]} 14. a4 {[%clk 0:02:47]}  a5 {[%clk 0:02:32]} 15. Bc4 {[%clk 0:02:44]}  Bd7 {[%clk 0:02:29]} 16. Bb5 {[%clk 0:02:40]}  g5 {[%clk 0:02:28]} 17. Nc4 {[%clk 0:02:36]}  Kh7 {[%clk 0:02:20]} 18. Ne3 {[%clk 0:02:34]}  Ne7 {[%clk 0:02:17]} 19. Bxd7 {[%clk 0:02:29]}  Qxd7 {[%clk 0:02:17]} 20. Nd2 {[%clk 0:02:14]}  Rad8 {[%clk 0:02:07]} 21. Ndf1 {[%clk 0:02:14]}  Ng6 {[%clk 0:01:58]} 22. Nf5 {[%clk 0:02:11]}  Rfe8 {[%clk 0:01:45]} 23. g3 {[%clk 0:02:07]}  Bf8 {[%clk 0:01:43]} 24. Kg2 {[%clk 0:02:03]}  Qc6 {[%clk 0:01:43]} 25. f3 {[%clk 0:02:02]}  Rd7 {[%clk 0:01:41]} 26. Red1 {[%clk 0:02:01]}  Red8 {[%clk 0:01:41]} 27. Rxd7 {[%clk 0:01:57]}  Qxd7 {[%clk 0:01:40]} 28. N5e3 {[%clk 0:01:54]}  Qc6 {[%clk 0:01:30]} 29. Rd1 {[%clk 0:01:53]}  Rxd1 {[%clk 0:01:26]} 30. Qxd1 {[%clk 0:01:53]}  Bd6 {[%clk 0:01:26]} 31. Qb3 {[%clk 0:01:42]}  Kg8 {[%clk 0:01:11]} 32. Nf5 {[%clk 0:01:34]}  Bf8 {[%clk 0:01:09]} 33. N1e3 {[%clk 0:01:33]}  b6 {[%clk 0:00:51]} 34. Ng4 {[%clk 0:01:25]}  Qe6 {[%clk 0:00:34]} 35. Ngxh6+ {[%clk 0:01:20]}  Kh7 {[%clk 0:00:34]} 36. Qxe6 {[%clk 0:00:25]}  fxe6 {[%clk 0:00:35]} 37. Nf7 {[%clk 0:00:20]}  exf5 {[%clk 0:00:34]} 38. Nxg5+ {[%clk 0:00:21]}  Kh6 {[%clk 0:00:30]} 39. Ne6 {[%clk 0:00:15]}  fxe4 {[%clk 0:00:29]} 40. fxe4 {[%clk 0:00:15]}  Bd6 {[%clk 0:00:28]} 41. Kf3 {[%clk 0:00:13]}  Ne7 {[%clk 0:00:24]} 42. h4 {[%clk 0:00:11]}  Kg6 {[%clk 0:00:23]} 43. Kg4 {[%clk 0:00:11]}  Kf6 {[%clk 0:00:23]} 44. Ng5 {[%clk 0:00:10]}  Ng6 {[%clk 0:00:23]} 45. h5 {[%clk 0:00:09]}  Nf8 {[%clk 0:00:23]} 46. Nf3 {[%clk 0:00:07]}  Ne6 {[%clk 0:00:22]} 47. Kh4 {[%clk 0:00:07]}  Nc5 {[%clk 0:00:21]} 48. Nd2 {[%clk 0:00:06]}  Nxa4 {[%clk 0:00:20]} 49. g4 {[%clk 0:00:07]}  Nxb2 {[%clk 0:00:20]} 50. g5+ {[%clk 0:00:07]}  Kf7 {[%clk 0:00:20]} 51. Kg4 {[%clk 0:00:05]}  a4 {[%clk 0:00:18]} 52. Kf5 {[%clk 0:00:04]}  a3 {[%clk 0:00:18]} 53. g6+ {[%clk 0:00:04]}  Kg7 {[%clk 0:00:18]} 54. Kg5 {[%clk 0:00:01]}  Be7+ {[%clk 0:00:17]} 55. Kf5 {[%clk 0:00:01]}  a2 {[%clk 0:00:17]} 56. Nb3 {[%clk 0:00:01]}  Nc4 {[%clk 0:00:17]} 57. Ke6 {[%clk 0:00:01]}  Bd6 {[%clk 0:00:16]} 0-1


[Site "https://www.chess.com"]

[Event "Titled Tuesday Blitz February 28 Early 2023"]
[White "Weetik, Vjacheslav"]
[Black "Reprintsev, Alexander"]
[WhiteFideId "4153472"]
[BlackFideId "14100541"]
[WhiteElo "2469"]
[BlackElo "2250"]
[Result "1-0"]
[Round "08"]
[TimeControl "180+2"]
[Date "2023.02.28"]
[WhiteClock "0:00:05"]
[BlackClock "0:00:06"]

1. d4 {[%clk 0:02:58]}  d5 {[%clk 0:02:59]} 2. c4 {[%clk 0:02:58]}  e5 {[%clk 0:02:58]} 3. e3 {[%clk 0:02:45]}  exd4 {[%clk 0:02:57]} 4. exd4 {[%clk 0:02:44]}  Nf6 {[%clk 0:02:58]} 5. Nf3 {[%clk 0:02:42]}  Nc6 {[%clk 0:02:58]} 6. Nc3 {[%clk 0:02:40]}  Bb4 {[%clk 0:02:54]} 7. Bd3 {[%clk 0:02:40]}  dxc4 {[%clk 0:02:54]} 8. Bxc4 {[%clk 0:02:40]}  Qe7+ {[%clk 0:02:54]} 9. Be3 {[%clk 0:02:35]}  Ng4 {[%clk 0:02:54]} 10. O-O {[%clk 0:02:27]}  Bxc3 {[%clk 0:02:54]} 11. Bg5 {[%clk 0:02:01]}  f6 {[%clk 0:02:21]} 12. bxc3 {[%clk 0:01:57]}  Qd6 {[%clk 0:02:01]} 13. Re1+ {[%clk 0:01:43]}  Kf8 {[%clk 0:02:00]} 14. Bc1 {[%clk 0:01:28]}  Bf5 {[%clk 0:01:57]} 15. a4 {[%clk 0:01:26]}  Na5 {[%clk 0:01:41]} 16. Ba3 {[%clk 0:01:13]}  Nxc4 {[%clk 0:01:39]} 17. Bxd6+ {[%clk 0:01:13]}  Nxd6 {[%clk 0:01:39]} 18. Qb3 {[%clk 0:01:04]}  Bg6 {[%clk 0:01:34]} 19. c4 {[%clk 0:00:59]}  Bf7 {[%clk 0:01:33]} 20. d5 {[%clk 0:00:58]}  b6 {[%clk 0:01:33]} 21. a5 {[%clk 0:00:50]}  Rc8 {[%clk 0:01:28]} 22. axb6 {[%clk 0:00:49]}  axb6 {[%clk 0:01:29]} 23. Nd4 {[%clk 0:00:45]}  Ne5 {[%clk 0:01:29]} 24. Rac1 {[%clk 0:00:35]}  g6 {[%clk 0:01:27]} 25. f4 {[%clk 0:00:33]}  Nd7 {[%clk 0:01:27]} 26. Qg3 {[%clk 0:00:25]}  Nc5 {[%clk 0:01:22]} 27. f5 {[%clk 0:00:23]}  Kg7 {[%clk 0:01:20]} 28. Re7 {[%clk 0:00:21]}  Rhe8 {[%clk 0:01:18]} 29. Rce1 {[%clk 0:00:19]}  Rxe7 {[%clk 0:01:18]} 30. Rxe7 {[%clk 0:00:19]}  Re8 {[%clk 0:01:18]} 31. Rxe8 {[%clk 0:00:11]}  Bxe8 {[%clk 0:01:12]} 32. Ne6+ {[%clk 0:00:10]}  Nxe6 {[%clk 0:01:12]} 33. fxe6 {[%clk 0:00:11]}  Kf8 {[%clk 0:01:05]} 34. Qa3 {[%clk 0:00:10]}  Ke7 {[%clk 0:00:57]} 35. c5 {[%clk 0:00:10]}  bxc5 {[%clk 0:00:56]} 36. Qxc5 {[%clk 0:00:09]}  Kd8 {[%clk 0:00:56]} 37. Qc3 {[%clk 0:00:07]}  Ne4 {[%clk 0:00:53]} 38. Qd4 {[%clk 0:00:07]}  f5 {[%clk 0:00:51]} 39. Qh8 {[%clk 0:00:08]}  h5 {[%clk 0:00:49]} 40. Qg7 {[%clk 0:00:07]}  Nd6 {[%clk 0:00:43]} 41. Qf6+ {[%clk 0:00:07]}  Kc8 {[%clk 0:00:43]} 42. Qe7 {[%clk 0:00:06]}  Kb7 {[%clk 0:00:41]} 43. Kf2 {[%clk 0:00:04]}  Kb6 {[%clk 0:00:41]} 44. Ke3 {[%clk 0:00:04]}  Kc5 {[%clk 0:00:41]} 45. Qxc7+ {[%clk 0:00:02]}  Kxd5 {[%clk 0:00:41]} 46. e7 {[%clk 0:00:03]}  g5 {[%clk 0:00:37]} 47. h4 {[%clk 0:00:02]}  f4+ {[%clk 0:00:36]} 48. Kf2 {[%clk 0:00:02]}  g4 {[%clk 0:00:23]} 49. Qd8 {[%clk 0:00:03]}  Ke6 {[%clk 0:00:22]} 50. Kg1 {[%clk 0:00:02]}  Bf7 {[%clk 0:00:17]} 51. Qf8 {[%clk 0:00:03]}  Kf6 {[%clk 0:00:15]} 52. Kf2 {[%clk 0:00:02]}  Ke6 {[%clk 0:00:15]} 53. Qh6+ {[%clk 0:00:02]}  Kxe7 {[%clk 0:00:15]} 54. Qxf4 {[%clk 0:00:02]}  Be8 {[%clk 0:00:13]} 55. Qb4 {[%clk 0:00:02]}  Kd7 {[%clk 0:00:13]} 56. Kg3 {[%clk 0:00:03]}  Ke6 {[%clk 0:00:10]} 57. Kf4 {[%clk 0:00:03]}  Nf7 {[%clk 0:00:09]} 58. Qb6+ {[%clk 0:00:03]}  Ke7 {[%clk 0:00:09]} 59. g3 {[%clk 0:00:03]}  Kf8 {[%clk 0:00:08]} 60. Qc5+ {[%clk 0:00:02]}  Kg7 {[%clk 0:00:08]} 61. Qe7 {[%clk 0:00:03]}  Bc6 {[%clk 0:00:07]} 62. Kf5 {[%clk 0:00:03]}  Bf3 {[%clk 0:00:07]} 63. Qf6+ {[%clk 0:00:03]}  Kf8 {[%clk 0:00:07]} 64. Kg6 {[%clk 0:00:03]}  Be4+ {[%clk 0:00:07]} 65. Kxh5 {[%clk 0:00:04]}  Bf3 {[%clk 0:00:07]} 66. Kg6 {[%clk 0:00:04]}  Be4+ {[%clk 0:00:07]} 67. Kh5 {[%clk 0:00:05]}  Bf3 {[%clk 0:00:07]} 68. Qf4 {[%clk 0:00:05]}  Kg7 {[%clk 0:00:07]} 69. Qd4+ {[%clk 0:00:05]}  Kg8 {[%clk 0:00:07]} 70. Kg6 {[%clk 0:00:05]}  Nh8+ {[%clk 0:00:07]} 71. Kf6 {[%clk 0:00:05]}  Kh7 {[%clk 0:00:06]} 72. Qd7+ {[%clk 0:00:05]} 1-0


[Site "https://www.chess.com"]